bitfinex-derivatives/quotes_BTCF0:USTF0_20250805
["timestamp","ask_amount","ask_price","bid_price","bid_amount"]
[1754368874891,1.02510885,114310.0,114300.0,0.85212579]
[1754368875396,1.02510885,114310.0,114300.0,1.33022344]
[1754368877191,1.02510885,114310.0,114300.0,0.85212579]
[1754368877392,1.02510885,114310.0,114300.0,1.33022344]
[1754368877696,1.02510885,114310.0,114300.0,0.85212579]
[1754368878092,1.02510885,114310.0,114300.0,0.81192579]
[1754368878997,1.02510885,114310.0,114300.0,0.63693939]
[1754368881500,1.02510885,114310.0,114300.0,0.03785939]
[1754368881798,1.02510885,114310.0,114300.0,0.59888]
[1754368881996,1.02510885,114310.0,114300.0,0.60778811]
[1754368882197,1.02510885,114310.0,114300.0,0.71805897]
[1754368883904,1.02510885,114310.0,114300.0,0.78670057]
[1754368890100,1.02510885,114310.0,114300.0,0.77779246]
[1754368891506,1.02510885,114310.0,114300.0,0.78649298]
[1754368891704,1.02510885,114310.0,114300.0,0.18761298]
[1754368891901,1.02510885,114310.0,114300.0,0.78641298]
[1754368892299,1.02510885,114310.0,114300.0,0.67614212]
[1754368896911,1.02510885,114310.0,114300.0,0.85112852]
[1754368897313,1.02510885,114310.0,114300.0,0.67614212]
[1754368899412,1.5032065,114310.0,114300.0,0.07734212]
[1754368899606,1.02510885,114310.0,114300.0,0.59872]
[1754368901314,1.02510885,114310.0,114300.0,0.60733785]
[1754368902714,1.02510885,114310.0,114300.0,0.71760871]
[1754368903312,1.02510885,114310.0,114300.0,0.78593816]
[1754368905530,1.02510885,114310.0,114300.0,0.77732031]
[1754368905729,1.02510885,114310.0,114300.0,0.66704945]
[1754368906728,1.52510885,114310.0,114300.0,0.66704945]
[1754368920038,1.52510885,114310.0,114300.0,0.77732031]
[1754368923241,1.52510885,114310.0,114300.0,0.95230691]
[1754368923842,1.52510885,114310.0,114300.0,0.77732031]
[1754368924541,1.52510885,114310.0,114300.0,0.95230691]
[1754368925442,1.0470112,114310.0,114300.0,0.95230691]
[1754368925643,1.52510885,114310.0,114300.0,0.95230691]
[1754368925944,1.45522885,114310.0,114300.0,0.95230691]
[1754368926135,1.45522885,114310.0,114300.0,1.3201337]
[1754368926444,1.50275885,114310.0,114300.0,1.3201337]
[1754368927342,1.50275885,114310.0,114300.0,0.84203605]
[1754368927541,1.50275885,114310.0,114300.0,1.3201337]
[1754368930737,1.0246612,114310.0,114300.0,1.3201337]
[1754368930944,1.48880885,114310.0,114300.0,1.3201337]
[1754368931346,1.50275885,114310.0,114300.0,1.3201337]
[1754368932149,1.50275885,114310.0,114300.0,1.43040456]
[1754368932646,1.45522885,114310.0,114300.0,1.3201337]
[1754368932847,1.50275885,114310.0,114300.0,1.3201337]
[1754368933047,1.45522885,114310.0,114300.0,1.3201337]
[1754368933240,0.9511912,114310.0,114300.0,1.79823135]
[1754368933441,0.9511912,114310.0,114300.0,1.90850221]
[1754368933651,0.9511912,114310.0,114300.0,1.43040456]
[1754368933944,0.9511912,114310.0,114300.0,1.3201337]
[1754368934149,0.27622,114310.0,114300.0,1.3201337]
[1754368934947,0.2515,114310.0,114300.0,1.79823135]
[1754368935152,0.2515,114310.0,114300.0,2.64818242]
[1754368935546,0.2515,114310.0,114300.0,2.53799934]
[1754368938541,0.2515,114310.0,114300.0,2.64796559]
[1754368938746,0.002,114310.0,114300.0,2.64796559]
[1754368940866,0.002,114310.0,114300.0,1.40683605]
[1754368941049,0.002,114310.0,114300.0,2.36303135]
[1754368941247,0.002,114310.0,114300.0,2.52058816]
[1754368941955,0.002,114310.0,114300.0,2.22058816]
[1754368944655,0.02672,114310.0,114300.0,2.22058816]
[1754368953662,0.002,114310.0,114300.0,2.22058816]
[1754368954862,0.002,114310.0,114300.0,2.06303135]
[1754368955470,0.002,114310.0,114300.0,2.841129]
[1754368955660,0.002,114310.0,114300.0,2.69555615]
[1754368955964,0.002,114310.0,114300.0,2.39555615]
[1754368959253,0.002,114310.0,114300.0,2.69555615]
[1754368960764,0.002,114310.0,114300.0,2.53799934]
[1754368960967,0.002,114310.0,114300.0,2.23799934]
[1754368965465,0.02582,114310.0,114300.0,2.23799934]
[1754368966069,0.02582,114310.0,114300.0,2.44269219]
[1754368970775,0.02582,114310.0,114300.0,2.2677242]
[1754368971176,0.20542427,114330.0,114320.0,0.1749585]
[1754368971376,0.20542427,114330.0,114320.0,2.9388738]
[1754368971569,0.27304427,114330.0,114320.0,2.9388738]
[1754368971981,0.27304427,114330.0,114320.0,3.09618076]
[1754368972586,0.02382,114330.0,114320.0,3.36098076]
[1754368972776,0.02682,114330.0,114320.0,3.2036738]
[1754368973277,0.03082,114330.0,114320.0,3.2036738]
[1754368976384,0.156,114340.0,114330.0,0.1749433]
[1754368976682,0.13218,114340.0,114330.0,1.9937786]
[1754368977087,0.156,114340.0,114330.0,1.9937786]
[1754368977578,0.157,114340.0,114330.0,2.15108556]
[1754368977971,0.02482,114340.0,114330.0,2.15108556]
[1754368978885,0.001,114340.0,114330.0,2.15108556]
[1754368979086,0.02482,114340.0,114330.0,2.15108556]
[1754368979478,0.11809,114340.0,114330.0,2.15108556]
[1754368980383,0.07177,114340.0,114330.0,1.55324556]
[1754368980579,0.77111555,114340.0,114330.0,1.67290791]
[1754368980885,0.77111555,114340.0,114330.0,1.51560095]
[1754368981075,0.2930179,114340.0,114330.0,1.51560095]
[1754368982692,0.2930179,114340.0,114330.0,1.46184048]
[1754368984090,0.2930179,114340.0,114330.0,1.0375033]
[1754368986889,0.2930179,114340.0,114330.0,1.0373833]
[1754368987294,0.2930179,114340.0,114330.0,0.7725833]
[1754368987880,0.2905233,114330.0,114320.0,0.10994242]
[1754368988190,0.2905233,114330.0,114320.0,0.70758242]
[1754368988191,0.71486048,114330.0,114320.0,0.70758242]
[1754368988391,1.01486048,114330.0,114320.0,0.70758242]
[1754368988889,0.2905385,114320.0,114310.0,0.10994242]
[1754368989190,0.2905385,114320.0,114310.0,0.70758242]
[1754368989391,0.2905385,114320.0,114310.0,0.88255622]
[1754368989789,0.2905385,114320.0,114310.0,1.0215334]
[1754368989984,0.2905385,114320.0,114310.0,1.19695098]
[1754368990188,0.2905385,114320.0,114310.0,1.19699098]
[1754368990590,0.2905385,114320.0,114310.0,1.19695098]
[1754368990791,0.5400385,114320.0,114310.0,1.19695098]
[1754368990987,0.5400385,114320.0,114310.0,0.7726138]
[1754368991195,0.5400385,114320.0,114310.0,1.19695098]
[1754368992095,0.5410385,114320.0,114310.0,1.19695098]
[1754368993496,0.5410385,114320.0,114310.0,0.59931098]
[1754368993798,0.5410385,114320.0,114310.0,1.19695098]
[1754368999398,0.5410385,114320.0,114310.0,0.59764]
[1754369000201,0.5410385,114320.0,114310.0,1.02197718]
[1754369001099,0.5410385,114320.0,114310.0,1.19695098]
[1754369001806,0.5410385,114320.0,114310.0,1.02197718]
[1754369004207,0.5410385,114320.0,114310.0,0.59764]
[1754369004509,0.5410385,114320.0,114310.0,1.02197718]
[1754369006207,0.5410385,114320.0,114310.0,0.59764]
[1754369006404,0.5410385,114320.0,114310.0,1.02197718]
[1754369010911,0.5410385,114320.0,114310.0,1.19695098]
[1754369016215,0.5410385,114320.0,114310.0,1.35425794]
[1754369017908,0.5410385,114320.0,114310.0,1.19695098]
[1754369018715,0.5410385,114320.0,114310.0,1.25017246]
[1754369024224,0.5410385,114320.0,114310.0,1.07519866]
[1754369024828,0.5410385,114320.0,114310.0,1.25017386]
[1754369027228,0.5410385,114320.0,114310.0,0.7726152]
[1754369027428,0.5410385,114320.0,114310.0,1.07519866]
[1754369029018,0.5410385,114320.0,114310.0,1.25017376]
[1754369029925,0.5410385,114320.0,114310.0,1.40748072]
[1754369030727,0.5410385,114320.0,114310.0,1.25017376]
[1754369032326,0.5410385,114320.0,114310.0,0.7726151]
[1754369032527,0.5410385,114320.0,114310.0,1.25017376]
[1754369032727,0.5410385,114320.0,114310.0,0.7726151]
[1754369032928,0.5410385,114320.0,114310.0,1.25017376]
[1754369033128,0.5410385,114320.0,114310.0,0.7726151]
[1754369033324,0.5410385,114320.0,114310.0,1.25017376]
[1754369033523,0.5410385,114320.0,114310.0,0.7726151]
[1754369033724,0.5410385,114320.0,114310.0,1.25017376]
[1754369034828,0.5410385,114320.0,114310.0,1.40748072]
[1754369036730,0.2915385,114320.0,114310.0,1.40748072]
[1754369037029,0.5410385,114320.0,114310.0,1.40748072]
[1754369040232,0.5410385,114320.0,114310.0,1.23250562]
[1754369042339,0.5410385,114320.0,114310.0,1.40748082]
[1754369042529,0.5410385,114320.0,114310.0,1.23250562]
[1754369044034,0.5410385,114320.0,114310.0,1.40748082]
[1754369044838,0.5410385,114320.0,114310.0,0.75494696]
[1754369045136,0.5410385,114320.0,114310.0,1.23250562]
[1754369046044,0.5410385,114320.0,114310.0,0.75494696]
[1754369046439,0.5410385,114320.0,114310.0,1.23202562]
[1754369048535,0.5410385,114320.0,114310.0,1.07471866]
[1754369049146,0.5410385,114320.0,114310.0,1.24969386]
[1754369051149,0.5410385,114320.0,114310.0,1.07471866]
[1754369051350,0.5410385,114320.0,114310.0,0.59716]
[1754369051649,0.5410385,114320.0,114310.0,1.07471866]
[1754369054754,0.5410385,114320.0,114310.0,0.59716]
[1754369055052,0.5410385,114320.0,114310.0,1.07471866]
[1754369058855,0.5410385,114320.0,114310.0,1.23202562]
[1754369060456,0.5410385,114320.0,114310.0,0.75446696]
[1754369060656,0.5410385,114320.0,114310.0,1.23202562]
[1754369062960,0.5410385,114320.0,114310.0,1.23202562]
[1754369063958,0.5410385,114320.0,114310.0,0.75446696]
[1754369064159,0.5410385,114320.0,114310.0,1.23202562]
[1754369065963,0.5410385,114320.0,114310.0,1.40700092]
[1754369067464,0.5410385,114320.0,114310.0,1.23202562]
[1754369068462,0.5410385,114320.0,114310.0,1.07471866]
[1754369069164,0.5410385,114320.0,114310.0,1.24969476]
[1754369069966,0.5410385,114320.0,114310.0,1.07471866]
[1754369075772,0.4877985,114320.0,114310.0,1.07471866]
[1754369076876,0.4877985,114320.0,114310.0,0.59716]
[1754369077069,0.4877985,114320.0,114310.0,1.07471866]
[1754369077673,0.4877985,114320.0,114310.0,0.59716]
[1754369077875,0.4877985,114320.0,114310.0,1.07471866]
[1754369078074,0.4877985,114320.0,114310.0,1.24969446]
[1754369080176,0.4877985,114320.0,114310.0,0.7721358]
[1754369080377,0.4877985,114320.0,114310.0,1.24969446]
[1754369080675,0.5426985,114320.0,114310.0,1.40700142]
[1754369083579,0.5290285,114320.0,114310.0,1.40700142]
[1754369083880,0.4254585,114320.0,114310.0,1.40700142]
[1754369084285,0.4492085,114320.0,114310.0,1.40700142]
[1754369084480,0.4254585,114320.0,114310.0,1.40700142]
[1754369084684,0.2505,114320.0,114310.0,1.40700142]
[1754369085284,0.2505,114320.0,114310.0,1.24969446]
[1754369085786,0.4254606,114320.0,114310.0,1.24969446]
[1754369085986,0.4492106,114320.0,114310.0,1.24969446]
[1754369086488,0.4492106,114320.0,114310.0,1.40711724]
[1754369087894,0.4492106,114320.0,114310.0,1.67191724]
[1754369090400,0.5071806,114320.0,114310.0,1.67191724]
[1754369090595,0.5453106,114320.0,114310.0,1.67191724]
[1754369093497,0.5303106,114320.0,114310.0,1.67191724]
[1754369093697,0.5303106,114320.0,114310.0,1.51449446]
[1754369094090,0.4754106,114320.0,114310.0,1.51449446]
[1754369094803,0.4754106,114320.0,114310.0,1.0369358]
[1754369095100,0.4754106,114320.0,114310.0,1.51449446]
[1754369095497,0.4590606,114320.0,114310.0,1.51449446]
[1754369095802,0.4492106,114320.0,114310.0,1.51449446]
[1754369096308,0.4492106,114320.0,114310.0,1.0369358]
[1754369096504,0.4492106,114320.0,114310.0,1.51449446]
[1754369098904,0.27425,114320.0,114310.0,1.51449446]
[1754369100107,0.4492113,114320.0,114310.0,1.67186113]
[1754369100296,0.27425,114320.0,114310.0,1.67186113]
[1754369100495,0.4492113,114320.0,114310.0,1.67186113]
[1754369100696,0.2505,114320.0,114310.0,2.14941979]
[1754369101003,0.2872391,114350.0,114340.0,0.1749307]
[1754369101203,0.3267191,114350.0,114340.0,1.33579936]
[1754369102004,0.80427776,114350.0,114340.0,1.33579936]
[1754369102409,0.3267191,114350.0,114340.0,1.33579936]
[1754369103108,0.86342776,114350.0,114340.0,1.33579936]
[1754369103308,0.3858691,114350.0,114340.0,1.33579936]
[1754369103508,0.3858691,114350.0,114340.0,1.34279936]
[1754369104098,0.86342776,114350.0,114340.0,1.34279936]
[1754369104603,0.3858691,114350.0,114340.0,1.34279936]
[1754369105910,0.3858691,114350.0,114340.0,0.8652407]
[1754369106110,0.86342776,114350.0,114340.0,1.25604936]
[1754369106310,0.86342776,114350.0,114340.0,1.08111866]
[1754369106506,0.3858691,114350.0,114340.0,1.25604886]
[1754369106705,0.86342776,114350.0,114340.0,1.28285886]
[1754369106907,0.86342776,114350.0,114340.0,0.8217302]
[1754369107107,0.86342776,114350.0,114340.0,1.29928886]
[1754369111613,0.86342776,114350.0,114340.0,1.56408886]
[1754369113017,0.86342776,114350.0,114340.0,1.58783886]
[1754369114116,0.3858691,114350.0,114340.0,1.58783886]
[1754369114317,0.86342776,114350.0,114340.0,1.58783886]
[1754369114716,0.3858691,114350.0,114340.0,1.58783886]
[1754369117319,0.3858691,114350.0,114340.0,1.1102802]
[1754369117519,0.3858691,114350.0,114340.0,1.32303886]
[1754369118018,0.86342776,114350.0,114340.0,1.32303886]
[1754369118211,0.86342776,114350.0,114340.0,1.32304286]
[1754369123428,0.86342776,114350.0,114340.0,1.58784286]
[1754369124328,0.2186574,114350.0,114340.0,1.58784286]
[1754369125625,0.2434474,114350.0,114340.0,1.58784286]
[1754369125828,0.2532474,114350.0,114340.0,1.58784286]
[1754369126025,0.3013674,114350.0,114340.0,1.58784286]
[1754369126329,0.3392974,114350.0,114340.0,1.58784286]
[1754369129330,0.3392974,114350.0,114340.0,1.32304286]
[1754369130531,0.3392974,114350.0,114340.0,1.14810866]
[1754369130532,0.81685606,114350.0,114340.0,1.14810866]
[1754369132135,0.3392974,114350.0,114340.0,1.14810866]
[1754369132333,0.81685606,114350.0,114340.0,1.14810866]
[1754369132826,0.81685606,114350.0,114340.0,1.32304286]
[1754369133124,0.3392974,114350.0,114340.0,1.14810866]
[1754369133933,0.3392974,114350.0,114340.0,1.32304296]
[1754369135235,0.3392974,114350.0,114340.0,1.58784296]
[1754369136333,0.3392974,114350.0,114340.0,1.1102843]
[1754369136533,0.3392974,114350.0,114340.0,1.58784296]
[1754369141135,0.3392974,114350.0,114340.0,1.32304296]
[1754369152342,0.2911774,114350.0,114340.0,1.32304296]
[1754369152538,0.2474483,114350.0,114340.0,1.32304296]
[1754369152738,0.1749283,114350.0,114340.0,1.32304296]
[1754369152939,0.2870252,114360.0,114350.0,0.2639438]
[1754369153845,0.2870252,114360.0,114350.0,0.85162279]
[1754369154244,0.2870252,114360.0,114350.0,0.85462279]
[1754369155244,0.2961552,114360.0,114350.0,0.85462279]
[1754369155444,0.3101352,114360.0,114350.0,0.85462279]
[1754369157040,0.2961552,114360.0,114350.0,0.85462279]
[1754369157235,0.0922643,114370.0,114350.0,0.85462279]
[1754369157236,0.374422,114370.0,114350.0,0.76907237]
[1754369157436,0.425802,114370.0,114360.0,1.70149432]
[1754369157748,0.377262,114370.0,114360.0,1.70149432]
[1754369157949,0.425802,114370.0,114360.0,1.81161465]
[1754369158351,0.3383503,114370.0,114360.0,1.81161465]
[1754369158644,0.3383503,114370.0,114360.0,1.81261465]
[1754369159353,0.2432803,114370.0,114360.0,1.81261465]
[1754369159650,0.2432803,114370.0,114360.0,1.70249432]
[1754369159949,0.2432803,114370.0,114360.0,1.70349432]
[1754369160844,0.2432803,114370.0,114360.0,1.77327907]
[1754369164553,0.2432803,114370.0,114360.0,2.03807907]
[1754369166048,0.2432803,114370.0,114360.0,2.1481994]
[1754369166652,0.1797064,114380.0,114360.0,2.1481994]
[1754369166653,0.2623323,114380.0,114360.0,2.1727229]
[1754369166853,0.4265852,114380.0,114370.0,0.57734606]
[1754369167060,0.90414386,114380.0,114370.0,1.18355899]
[1754369167251,0.4265852,114380.0,114370.0,1.18355899]
[1754369167759,0.4265852,114380.0,114370.0,1.44835899]
[1754369168756,0.4265852,114380.0,114370.0,1.39489403]
[1754369169058,0.4265852,114380.0,114370.0,1.56978783]
[1754369171659,0.4265852,114380.0,114370.0,1.4596675]
[1754369173564,0.4265852,114380.0,114370.0,1.2847737]
[1754369174163,0.4265852,114380.0,114370.0,1.4596671]
[1754369174865,0.4265852,114380.0,114370.0,1.2847737]
[1754369175763,0.4265852,114380.0,114370.0,0.2648]
[1754369175971,0.4265852,114380.0,114370.0,0.86056]
[1754369179768,0.4265852,114380.0,114370.0,0.59576]
[1754369180765,0.4265852,114380.0,114370.0,0.70588033]
[1754369184969,0.4265852,114380.0,114370.0,1.30486743]
[1754369185273,0.3773452,114380.0,114370.0,1.30486743]
[1754369185976,0.3306352,114380.0,114370.0,1.30486743]
[1754369188777,0.3653252,114380.0,114370.0,1.30486743]
[1754369190377,0.3306352,114380.0,114370.0,1.30486743]
[1754369191481,0.3306352,114380.0,114370.0,1.56966743]
[1754369191781,0.3306352,114380.0,114370.0,1.57166743]
[1754369193181,0.3306352,114380.0,114370.0,1.57466743]
[1754369196290,0.2623323,114380.0,114370.0,1.57466743]
[1754369196480,0.1311536,114390.0,114370.0,1.53093773]
[1754369196685,0.3301821,114390.0,114380.0,0.5238507]
[1754369196884,0.3301821,114390.0,114380.0,0.63397103]
[1754369197086,0.4036621,114390.0,114380.0,0.63397103]
[1754369197391,0.4249321,114390.0,114380.0,0.63397103]
[1754369198282,0.4249321,114390.0,114380.0,0.45909253]
[1754369198488,0.4249321,114390.0,114380.0,0.46009253]
[1754369199090,0.4249321,114390.0,114380.0,0.63497113]
[1754369201091,0.4249321,114390.0,114380.0,0.63397113]
[1754369201396,0.4249321,114390.0,114380.0,0.5238508]
[1754369201397,0.4269321,114390.0,114380.0,0.5238508]
[1754369202497,0.4269321,114390.0,114380.0,0.63375497]
[1754369202697,0.4289321,114390.0,114380.0,0.63375497]
[1754369203292,0.3341821,114390.0,114380.0,0.5238508]
[1754369203497,0.290463,114390.0,114380.0,0.5238508]
[1754369204797,0.02815,114390.0,114380.0,0.5238508]
[1754369204999,0.2030128,114390.0,114380.0,0.63375497]
[1754369206095,0.004,114390.0,114380.0,0.63375497]
[1754369206298,0.02815,114390.0,114380.0,0.63375497]
[1754369207695,0.2030128,114390.0,114380.0,0.63375497]
[1754369208300,0.2376128,114390.0,114380.0,0.63375497]
[1754369208501,0.2977628,114390.0,114380.0,0.63375497]
[1754369209204,0.2977628,114390.0,114380.0,0.89855497]
[1754369213502,0.2180828,114390.0,114380.0,0.89855497]
[1754369213802,0.2030128,114390.0,114380.0,0.89855497]
[1754369214306,0.2491428,114390.0,114380.0,0.89855497]
[1754369214509,0.2977628,114390.0,114380.0,0.89855497]
[1754369219511,0.2977636,114390.0,114380.0,0.89855497]
[1754369220608,0.2977636,114390.0,114380.0,1.39354844]
[1754369221005,0.2977636,114390.0,114380.0,1.07261492]
[1754369221206,0.77469852,114390.0,114380.0,1.07261492]
[1754369221512,0.2977636,114390.0,114380.0,1.18250056]
[1754369222712,0.2977636,114390.0,114380.0,1.01971958]
[1754369223711,0.2977636,114390.0,114380.0,1.19459838]
[1754369225316,0.2977636,114390.0,114380.0,1.30455653]
[1754369225716,0.2977636,114390.0,114380.0,1.19459838]
[1754369226019,0.0269,114390.0,114380.0,1.19459838]
[1754369226616,0.201763,114390.0,114380.0,1.19459838]
[1754369228620,0.0269,114390.0,114380.0,1.19459838]
[1754369228821,0.0269,114390.0,114380.0,1.30458073]
[1754369229115,0.004,114390.0,114380.0,1.7267474]
[1754369229323,0.004,114390.0,114380.0,1.61676505]
[1754369229515,0.0269,114390.0,114380.0,1.61676505]
[1754369230022,0.004,114390.0,114380.0,1.45939838]
[1754369230217,0.0243,114400.0,114390.0,0.174863]
[1754369230425,0.0014,114400.0,114390.0,1.02294216]
[1754369230724,0.0014,114400.0,114390.0,1.18030883]
[1754369231022,0.0243,114400.0,114390.0,0.75626925]
[1754369231422,0.0263,114400.0,114390.0,0.75626925]
[1754369231810,0.0283,114400.0,114390.0,0.75626925]
[1754369232322,0.0283,114400.0,114390.0,0.59890258]
[1754369232725,0.2031479,114400.0,114390.0,0.174863]
[1754369233021,0.2990679,114400.0,114390.0,0.59890258]
[1754369233415,0.2970679,114400.0,114390.0,1.19458258]
[1754369233615,0.2980679,114400.0,114390.0,1.19458258]
[1754369234426,0.2980679,114400.0,114390.0,0.770543]
[1754369234630,0.2980679,114400.0,114390.0,1.19458258]
[1754369235817,0.2980679,114400.0,114390.0,1.45938258]
[1754369236018,0.2966679,114400.0,114390.0,0.68883958]
[1754369236325,0.5461679,114400.0,114390.0,1.28447958]
[1754369236626,0.5461679,114400.0,114390.0,1.45934288]
[1754369238521,0.5461679,114400.0,114390.0,1.28447958]
[1754369239729,0.5461679,114400.0,114390.0,0.68883958]
[1754369240028,0.5461679,114400.0,114390.0,1.28455958]
[1754369240724,0.5461679,114400.0,114390.0,1.3943617]
[1754369241328,0.5461679,114400.0,114390.0,0.7986417]
[1754369241535,0.5461679,114400.0,114390.0,1.5693451]
[1754369241728,0.5461679,114400.0,114390.0,1.3045451]
[1754369242829,0.5461679,114400.0,114390.0,1.19474298]
[1754369244132,0.5461679,114400.0,114390.0,1.01987958]
[1754369244635,0.5461679,114400.0,114390.0,1.19474298]
[1754369247333,0.5461679,114400.0,114390.0,1.30453736]
[1754369247734,0.5461679,114400.0,114390.0,1.12967396]
[1754369253430,0.5461679,114400.0,114390.0,1.30453736]
[1754369255137,0.5461679,114400.0,114390.0,0.70869736]
[1754369255337,0.5461679,114400.0,114390.0,1.30433736]
[1754369255540,0.5461679,114400.0,114390.0,1.19454298]
[1754369258642,0.5461679,114400.0,114390.0,1.7242278]
[1754369259642,0.5461679,114400.0,114390.0,1.88159447]
[1754369261442,0.5461679,114400.0,114390.0,1.70673107]
[1754369261942,0.5461679,114400.0,114390.0,1.70669107]
[1754369262242,0.5461679,114400.0,114390.0,1.22982887]
[1754369262842,0.5461679,114400.0,114390.0,1.0724622]
[1754369263139,1.0230301,114400.0,114390.0,0.4768622]
[1754369263340,1.0230301,114400.0,114390.0,1.0724622]
[1754369263741,0.5461679,114400.0,114390.0,1.0724622]
[1754369264041,0.5461679,114400.0,114390.0,1.18247078]
[1754369264641,0.5461679,114400.0,114390.0,1.12955235]
[1754369267636,0.5461679,114400.0,114390.0,1.19440707]
[1754369268537,0.5461679,114400.0,114390.0,0.5956]
[1754369273138,0.1748628,114390.0,114380.0,0.72818457]
[1754369273449,0.1985628,114390.0,114380.0,1.32378457]
[1754369274951,0.2307828,114390.0,114380.0,1.32378457]
[1754369276640,0.2307828,114390.0,114380.0,1.1664179]
[1754369277252,0.1985628,114390.0,114380.0,1.1664179]
[1754369277551,0.1985628,114390.0,114380.0,1.59036167]
[1754369278548,0.1985628,114390.0,114380.0,1.70035269]
[1754369279156,0.1985628,114390.0,114380.0,1.43555269]
[1754369280053,0.1985628,114390.0,114380.0,1.32556167]
[1754369281552,0.1985628,114390.0,114380.0,0.8578991]
[1754369281755,0.1985628,114390.0,114380.0,1.28184287]
[1754369283764,0.1985628,114390.0,114380.0,1.39183389]
[1754369285859,0.1985628,114390.0,114380.0,1.28184287]
[1754369286263,0.1985628,114390.0,114380.0,0.68624287]
[1754369286464,0.1985628,114390.0,114380.0,1.28184287]
[1754369286764,0.1985628,114390.0,114380.0,1.81166904]
[1754369287264,0.1985628,114390.0,114380.0,0.8578991]
[1754369287463,0.1985628,114390.0,114380.0,1.81166904]
[1754369288964,0.1985628,114390.0,114380.0,1.33478407]
[1754369289263,0.2947328,114390.0,114380.0,1.33478407]
[1754369293671,0.2947328,114390.0,114380.0,1.49191414]
[1754369295271,0.2247228,114390.0,114380.0,1.96879911]
[1754369299274,0.2247228,114390.0,114380.0,1.81166904]
[1754369300176,0.2247228,114390.0,114380.0,1.33478407]
[1754369300572,0.2247228,114390.0,114380.0,1.81166904]
[1754369302679,0.2247228,114390.0,114380.0,1.21606904]
[1754369302878,0.2247228,114390.0,114380.0,1.81158904]
[1754369303281,0.0237,114390.0,114380.0,1.81158904]
[1754369305179,0.0237,114390.0,114380.0,2.01628189]
[1754369305379,0.0237,114390.0,114380.0,2.01828189]
[1754369306488,0.2495,114400.0,114390.0,0.1748634]
[1754369306784,0.2495,114400.0,114390.0,1.28575062]
[1754369307381,0.2495,114400.0,114390.0,1.12863334]
[1754369308274,0.27315,114400.0,114390.0,1.12863334]
[1754369309085,0.2495,114400.0,114390.0,1.12863334]
[1754369309882,0.27315,114400.0,114390.0,1.28575062]
[1754369310785,0.530168,114400.0,114390.0,1.28575062]
[1754369310982,0.544168,114400.0,114390.0,1.28575062]
[1754369311182,0.544168,114400.0,114390.0,1.28775062]
[1754369311386,0.36932,114400.0,114390.0,1.28775062]
[1754369311586,0.36932,114400.0,114390.0,1.88423062]
[1754369311781,0.27315,114400.0,114390.0,1.88423062]
[1754369311989,0.2495,114400.0,114390.0,1.88423062]
[1754369312287,0.2725,114400.0,114390.0,1.88423062]
[1754369313290,0.4473481,114400.0,114390.0,1.88423062]
[1754369313791,0.5283781,114400.0,114390.0,1.72711334]
[1754369313989,0.5427281,114400.0,114390.0,1.72711334]
[1754369314192,0.2932281,114400.0,114390.0,1.72711334]
[1754369314688,0.2932281,114400.0,114390.0,1.88423062]
[1754369315388,0.2932281,114400.0,114390.0,1.72711334]
[1754369318492,0.11838,114400.0,114390.0,1.72711334]
[1754369318692,0.2932281,114400.0,114390.0,1.72711334]
[1754369318892,0.11838,114400.0,114390.0,2.93607334]
[1754369319194,0.11838,114400.0,114390.0,3.09295495]
[1754369320195,0.2932275,114400.0,114390.0,2.13918501]
[1754369320395,0.2932275,114400.0,114390.0,3.09295495]
[1754369320595,0.11838,114400.0,114390.0,3.09295495]
[1754369320991,0.2932275,114400.0,114390.0,3.09295495]
[1754369321496,0.11838,114400.0,114390.0,3.09295495]
[1754369321896,0.2932275,114400.0,114390.0,3.09295495]
[1754369323892,0.11838,114400.0,114390.0,3.09295495]
[1754369324590,0.2932275,114400.0,114390.0,3.09295495]
[1754369324797,0.11838,114400.0,114390.0,3.09295495]
[1754369327192,0.07083,114400.0,114390.0,3.09295495]
[1754369327393,0.023,114400.0,114390.0,2.93607334]
[1754369328189,0.2495,114410.0,114390.0,2.89235034]
[1754369328394,0.4243328,114410.0,114400.0,1.32882213]
[1754369328595,0.2725,114410.0,114400.0,1.8057071]
[1754369328791,0.2495,114410.0,114400.0,1.9155166]
[1754369329298,0.2495,114410.0,114400.0,1.8057071]
[1754369329498,0.2725,114410.0,114400.0,1.32882213]
[1754369331500,0.2725,114410.0,114400.0,1.17194117]
[1754369332099,0.023,114410.0,114400.0,1.17194117]
[1754369332299,0.023,114410.0,114400.0,1.32882213]
[1754369340400,0.023,114410.0,114400.0,1.28173997]
[1754369341207,0.023,114410.0,114400.0,1.75862494]
[1754369342396,0.27409,114420.0,114400.0,1.75861654]
[1754369342599,0.27409,114420.0,114410.0,1.05343554]
[1754369343607,0.27509,114420.0,114410.0,1.05343554]
[1754369344008,0.2505,114420.0,114410.0,1.05343554]
[1754369344208,0.27509,114420.0,114410.0,1.05343554]
[1754369344405,0.2505,114420.0,114410.0,1.05343554]
[1754369344908,0.2515,114420.0,114410.0,1.16323434]
[1754369345511,0.27609,114420.0,114410.0,1.16323434]
[1754369346310,0.36932,114420.0,114410.0,1.16323434]
[1754369346506,0.5441375,114420.0,114410.0,0.76151657]
[1754369346711,0.5441375,114420.0,114410.0,1.24695777]
[1754369347211,0.2946375,114420.0,114410.0,1.24695777]
[1754369347408,0.36932,114420.0,114410.0,1.72384274]
[1754369348307,0.36932,114420.0,114410.0,1.98864274]
[1754369348606,0.36932,114420.0,114410.0,1.51175777]
[1754369348810,0.36932,114420.0,114410.0,1.45854863]
[1754369349013,0.32355,114420.0,114410.0,1.45854863]
[1754369349611,0.35576,114420.0,114410.0,1.45854863]
[1754369349812,0.5441372,114420.0,114410.0,1.45854863]
[1754369354017,0.5421372,114420.0,114410.0,1.45854863]
[1754369356919,0.36732,114420.0,114410.0,1.45854863]
[1754369357111,0.5421371,114420.0,114410.0,1.45854863]
[1754369360821,0.36732,114420.0,114410.0,1.45854863]
[1754369361531,0.5421349,114420.0,114410.0,1.45854863]
[1754369362033,0.36732,114420.0,114410.0,1.45854863]
[1754369362834,0.5421352,114420.0,114410.0,1.45854863]
[1754369365431,0.36732,114420.0,114410.0,1.45854863]
[1754369365632,0.5421367,114420.0,114410.0,1.45854863]
[1754369370637,0.5421367,114420.0,114410.0,1.51152367]
[1754369373236,0.5421367,114420.0,114410.0,1.98817454]
[1754369373533,0.36732,114420.0,114410.0,1.98817454]
[1754369373735,0.27404,114420.0,114410.0,1.98817454]
[1754369378243,0.4488567,114420.0,114410.0,1.98817454]
[1754369378538,0.5446667,114420.0,114410.0,1.98817454]
[1754369379140,0.5446667,114420.0,114410.0,1.98801454]
[1754369380335,0.5446667,114420.0,114410.0,1.0347128]
[1754369380543,0.5446667,114420.0,114410.0,1.98801454]
[1754369388049,0.5446667,114420.0,114410.0,1.51136367]
[1754369388242,0.5446667,114420.0,114410.0,1.98801454]
[1754369389247,0.5446667,114420.0,114410.0,1.51136367]
[1754369389449,0.36985,114420.0,114410.0,1.98801454]
[1754369390851,0.5446667,114420.0,114410.0,1.98801454]